bitfinex/quotes_SOLUSD_20240620
["timestamp","ask_amount","ask_price","bid_price","bid_amount"]
[1718867328654,1.1988,136.09,136.04,7.96]
[1718867331043,8.4788,136.09,136.04,0.68]
[1718867331250,8.4788,136.09,136.04,7.96]
[1718867331429,1.1988,136.09,136.04,7.96]
[1718867331944,8.4788,136.09,136.04,7.96]
[1718867333357,8.4788,136.09,136.04,0.68]
[1718867333533,1.1988,136.09,136.05,15.6393]
[1718867333858,8.4788,136.09,136.06,0.68]
[1718867335240,1.1988,136.09,136.06,0.68]
[1718867335442,1.1988,136.09,136.07,7.28]
[1718867335755,1.1988,136.09,136.08,0.68]
[1718867337135,1.1988,136.09,136.08,7.96]
[1718867337946,1.1988,136.09,136.08,0.68]
[1718867339467,1.1988,136.09,136.08,7.96]
[1718867339769,1.1988,136.09,136.06,7.45]
[1718867339936,1.1988,136.09,136.07,0.17]
[1718867340137,1.1988,136.09,136.07,7.28]
[1718867341536,1.1988,136.09,136.08,0.34]
[1718867341757,1.1988,136.09,136.07,7.28]
[1718867341961,1.1988,136.09,136.08,0.17]
[1718867343871,1.1988,136.09,136.07,0.34]
[1718867344639,1.1988,136.09,136.08,7.79]
[1718867345059,1.1988,136.09,136.08,7.96]
[1718867348470,1.1988,136.09,136.08,0.68]
[1718867348851,1.1988,136.09,136.08,7.96]
[1718867351773,1.1988,136.09,136.08,0.68]
[1718867351960,1.1988,136.09,136.08,7.96]
[1718867354368,1.1988,136.09,136.08,0.68]
[1718867354591,1.1988,136.09,136.08,7.96]
[1718867355470,1.1988,136.09,136.08,0.68]
[1718867355654,1.1988,136.09,136.08,7.96]
[1718867355851,1.1988,136.09,136.08,0.68]
[1718867356157,1.1988,136.09,136.08,7.96]
[1718867358175,1.1988,136.09,136.08,0.68]
[1718867358372,1.1988,136.09,136.08,7.96]
[1718867361257,7.28,136.17,136.09,0.17]
[1718867361456,7.28,136.17,136.11,7.28]
[1718867361656,7.28,136.17,136.12,0.17]
[1718867362178,7.28,136.16,136.1,0.17]
[1718867362978,7.28,136.16,136.11,0.17]
[1718867363179,7.28,136.16,136.11,0.34]
[1718867363756,7.28,136.16,136.11,0.17]
[1718867364079,6.4942,136.18,136.11,0.34]
[1718867364253,7.28,136.16,136.11,0.34]
[1718867364582,7.28,136.16,136.11,0.17]
[1718867365077,7.28,136.16,136.07,0.17]
[1718867365253,7.28,136.16,136.1,0.17]
[1718867365460,7.28,136.16,136.1,0.34]
[1718867366077,7.28,136.16,136.1,7.62]
[1718867367058,6.4942,136.18,136.1,7.62]
[1718867367257,7.28,136.16,136.1,7.62]
[1718867367457,15.0307,136.19,136.11,7.45]
[1718867367663,7.28,136.18,136.12,7.45]
[1718867368363,15.0307,136.19,136.12,7.45]
[1718867368671,22.3107,136.19,136.12,7.45]
[1718867368870,7.28,136.18,136.12,7.45]
[1718867371386,15.0307,136.19,136.12,7.45]
[1718867371686,7.28,136.18,136.12,7.45]
[1718867371893,7.28,136.18,136.08,6.2766]
[1718867372094,7.28,136.16,136.1,7.28]
[1718867372294,15.0307,136.19,136.1,7.28]
[1718867372485,15.0307,136.19,136.11,7.28]
[1718867372673,15.0307,136.19,136.12,7.28]
[1718867372875,7.28,136.18,136.08,13.5566]
[1718867373073,7.28,136.18,136.11,7.28]
[1718867373396,7.28,136.18,136.12,0.17]
[1718867373783,30.0,136.13,136.12,0.17]
[1718867375683,30.0,136.13,136.11,0.34]
[1718867378111,30.0,136.13,136.12,0.51]
[1718867378697,30.0,136.13,136.12,0.68]
[1718867384911,30.0,136.13,136.12,7.96]
[1718867385410,30.0,136.13,136.12,0.68]
[1718867385586,30.0,136.13,136.12,7.96]
[1718867386414,30.0,136.13,136.12,0.68]
[1718867386588,30.0,136.13,136.12,7.96]
[1718867386914,30.0,136.13,136.12,23.0447]
[1718867387087,15.7939,136.23,136.13,0.17]
[1718867387294,15.7939,136.23,136.18,7.28]
[1718867387609,30.0,136.19,136.18,7.28]
[1718867388093,30.0,136.19,136.15,6.0143]
[1718867388291,30.0,136.19,136.18,7.28]
[1718867388703,15.7939,136.23,136.18,7.28]
[1718867389005,15.7939,136.23,136.19,7.28]
[1718867392103,15.7939,136.23,136.16,0.17]
[1718867392305,15.7939,136.23,136.18,7.28]
[1718867393114,15.7939,136.23,136.16,20.34]
[1718867393316,23.0739,136.23,136.17,7.28]
[1718867393513,23.0739,136.23,136.16,20.34]
[1718867393899,15.7939,136.23,136.18,7.28]
[1718867394502,15.7939,136.23,136.19,7.28]
[1718867394691,15.7939,136.23,136.16,20.34]
[1718867395711,7.28,136.2,136.12,21.2989]
[1718867395930,15.7939,136.23,136.14,7.28]
[1718867396213,7.28,136.19,136.14,7.28]
[1718867396397,7.28,136.2,136.14,7.28]
[1718867396599,7.28,136.19,136.12,6.2142]
[1718867396807,7.28,136.19,136.09,16.5448]
[1718867396808,0.17,136.21,136.09,23.0948]
[1718867397007,7.28,136.16,136.1,7.28]
[1718867397423,7.28,136.17,136.08,253.6]
[1718867397717,15.0488,136.18,136.11,7.28]
[1718867397909,7.28,136.17,136.08,260.88]
[1718867398093,7.28,136.17,136.12,7.28]
[1718867398508,22.3288,136.18,136.13,0.17]
[1718867398709,6.3372,136.2,136.14,7.28]
[1718867399218,13.6172,136.2,136.14,7.28]
[1718867399395,15.0972,136.21,136.14,7.28]
[1718867399396,15.0972,136.21,136.15,0.34]
[1718867399596,7.28,136.2,136.15,7.28]
[1718867400317,7.28,136.2,136.13,0.17]
[1718867400318,7.28,136.2,136.13,0.34]
[1718867400621,7.28,136.2,136.14,7.28]
[1718867401003,15.0972,136.21,136.15,7.28]
[1718867401211,7.28,136.2,136.15,7.28]
[1718867401598,7.3442,136.17,136.08,253.6]
[1718867401813,7.28,136.14,136.08,260.88]
[1718867402012,7.28,136.14,136.05,5.93331441]
[1718867402221,7.28,136.15,136.09,7.28]
[1718867403420,7.3438,136.17,136.09,7.28]
[1718867403726,7.28,136.15,136.09,7.28]
[1718867403904,7.3433,136.18,136.09,7.28]
[1718867404503,7.28,136.16,136.1,7.28]
[1718867406212,7.28,136.15,136.05,5.93331441]
[1718867406411,22.4391,136.21,136.14,7.28]
[1718867406718,7.28,136.2,136.14,7.28]
[1718867407193,7.28,136.2,136.08,49.12]
[1718867407398,7.28,136.2,136.14,7.28]
[1718867409397,15.0972,136.21,136.14,7.28]
[1718867409600,7.28,136.2,136.14,7.28]
[1718867410319,7.28,136.19,136.13,7.28]
[1718867410522,7.28,136.19,136.09,0.34]
[1718867410710,7.28,136.19,136.13,7.28]
[1718867411022,7.28,136.2,136.13,7.28]
[1718867411205,7.28,136.2,136.14,7.28]
[1718867411402,7.28,136.2,136.11,0.17]
[1718867411624,7.28,136.19,136.13,7.28]
[1718867412306,7.28,136.2,136.13,7.28]
[1718867412513,7.28,136.19,136.11,0.17]
[1718867412711,7.28,136.19,136.13,7.28]
[1718867412916,7.28,136.2,136.13,7.28]
[1718867413513,15.0972,136.21,136.16,7.28]
[1718867414429,22.3772,136.21,136.15,7.28]
[1718867414632,15.0972,136.21,136.15,7.28]
[1718867415730,22.3772,136.21,136.09,0.34]
[1718867416025,7.28,136.2,136.09,0.17]
[1718867416214,15.0972,136.21,136.09,5.99659146]
[1718867416406,15.0972,136.21,136.1,20.0]
[1718867416605,22.3772,136.21,136.15,7.28]
[1718867417027,7.28,136.2,136.1,20.0]
[1718867417233,7.28,136.2,136.14,7.28]
[1718867417526,22.3772,136.21,136.1,0.17]
[1718867417715,22.3772,136.21,136.1,0.51]
[1718867418026,22.3772,136.21,136.15,7.28]
[1718867418527,15.0972,136.21,136.15,7.28]
[1718867418723,22.3772,136.21,136.15,7.28]
[1718867419328,22.3772,136.21,136.1,0.51]
[1718867419530,22.3772,136.21,136.11,0.17]
[1718867419735,22.3772,136.21,136.15,7.28]
[1718867420432,22.3772,136.21,136.12,0.17]
[1718867420736,22.3772,136.21,136.15,7.28]
[1718867421511,22.3772,136.21,136.12,0.34]
[1718867421829,22.3772,136.21,136.15,7.28]
[1718867422532,22.3772,136.21,136.12,0.34]
[1718867422829,22.3772,136.21,136.15,7.28]
[1718867423829,22.3772,136.21,136.12,0.34]
[1718867424016,22.3772,136.21,136.15,7.28]
[1718867424220,22.3772,136.21,136.12,0.34]
[1718867424426,22.3772,136.21,136.15,7.28]
[1718867425041,15.0972,136.21,136.15,7.28]
[1718867426137,15.0972,136.21,136.12,0.17]
[1718867426435,0.17,136.2,136.11,0.68]
[1718867426605,0.34,136.2,136.14,7.28]
[1718867430231,22.3772,136.21,136.14,7.28]
[1718867430427,15.0972,136.21,136.15,7.28]
[1718867430741,22.3772,136.21,136.14,7.28]
[1718867431126,22.3772,136.21,136.11,0.17]
[1718867431438,15.0972,136.21,136.15,7.28]
[1718867433538,15.0972,136.21,136.11,0.34]
[1718867433713,15.0972,136.21,136.15,7.28]
[1718867435225,22.3772,136.21,136.09,20.0]
[1718867435545,0.34,136.2,136.14,7.28]
[1718867435744,0.34,136.2,136.15,7.28]
[1718867437143,15.0972,136.21,136.16,7.28]
[1718867438147,25.98710095,136.27,136.2,7.28]
[1718867438148,6.018,136.27,136.2,7.28]
[1718867438317,6.018,136.27,136.25,7.28]
[1718867438639,15.1021,136.29,136.26,7.28]
[1718867438838,15.1021,136.29,136.28,7.28]
[1718867439217,6.018,136.31,136.28,7.28]
[1718867439421,15.1021,136.33,136.3,7.28]
[1718867440147,6.018,136.35,136.32,7.28]
[1718867440827,16.2644,136.36,136.32,7.28]
[1718867442160,7.28,136.34,136.25,6.1138]
[1718867442441,7.28,136.31,136.24,0.17]
[1718867442747,7.28,136.31,136.26,7.28]
[1718867443255,7.28,136.31,136.22,29.12]
[1718867443441,0.34,136.33,136.23,20.0]
[1718867443624,0.34,136.32,136.23,20.0]
[1718867443825,0.34,136.32,136.22,20.0]
[1718867444533,0.34,136.32,136.23,0.17]
[1718867445825,0.17,136.32,136.23,0.34]
[1718867446028,0.17,136.33,136.23,0.34]
[1718867446238,0.51,136.34,136.23,0.34]
[1718867446547,45.17,136.35,136.25,0.17]
[1718867446548,7.3344,136.35,136.25,0.17]
[1718867446725,6.0075,136.32,136.24,21.75]
[1718867446932,13.3436,136.32,136.23,0.17]
[1718867448644,0.17,136.3,136.17,22.344]
[1718867448843,7.3392,136.26,136.14,21.75]
[1718867449050,7.3394,136.25,136.14,21.75]
[1718867449658,7.3391,136.26,136.14,21.75]
[1718867450156,7.3391,136.26,136.15,0.68]
[1718867450343,7.5084,136.27,136.15,0.68]
[1718867450540,0.34,136.26,136.14,21.75]
[1718867450751,16.3311,136.23,136.14,21.75]
[1718867451345,16.3311,136.23,136.15,20.0]
[1718867453251,16.3311,136.23,136.1,271.64449923]
[1718867453432,7.3416,136.21,136.09,22.3475]
[1718867453637,7.3416,136.21,136.1,41.75]
[1718867453859,7.8512,136.22,136.1,41.75]
[1718867454064,7.3417,136.21,136.1,41.75]
[1718867454241,0.17,136.21,136.08,21.75]
[1718867454441,7.3437,136.18,136.08,21.75]
[1718867454735,7.3437,136.18,136.05,50.08051789]
[1718867454936,7.3437,136.18,136.05,44.3242]
[1718867455542,7.3437,136.18,136.06,0.51]
[1718867455743,23.2652,136.19,136.06,0.51]
[1718867455953,0.34,136.18,136.07,0.34]
[1718867456157,0.34,136.18,136.09,0.17]
[1718867456663,0.34,136.18,136.09,0.34]
[1718867460671,0.17,136.15,136.06,20.0]
[1718867460844,7.3454,136.14,136.03,21.75]
[1718867461171,0.17,136.15,136.04,20.0]
[1718867461488,7.855,136.15,136.04,20.0]
[1718867461849,0.51,136.15,136.04,20.0]
[1718867462048,7.516,136.13,136.04,20.0]
[1718867462249,0.34,136.12,136.03,21.75]
[1718867462848,6.2214,136.11,135.97,15.3393]
[1718867463166,16.2703,136.08,135.98,41.75]
[1718867463371,23.6189,136.08,135.98,41.75]
[1718867463667,16.2703,136.08,135.98,41.75]
[1718867465058,16.2703,136.08,135.99,0.51]
[1718867465379,16.2703,136.08,136.0,0.34]
[1718867465706,16.2703,136.08,136.01,0.17]
[1718867466763,23.6189,136.08,136.01,0.17]
[1718867467656,16.2703,136.08,135.98,41.75]
[1718867467862,16.2703,136.08,135.98,20.0]
[1718867468172,7.3494,136.07,135.98,20.0]
[1718867468355,16.2703,136.08,135.98,20.0]
[1718867468553,16.2703,136.08,136.0,21.75]
[1718867468770,0.17,136.07,135.98,20.0]
[1718867469073,7.3504,136.05,135.95,28.0688]
[1718867469371,7.3504,136.05,135.96,20.0]
[1718867469957,7.3498,136.06,135.96,20.0]
[1718867470565,7.3502,136.05,135.97,0.34]
[1718867471275,7.3502,136.05,135.97,0.17]
[1718867472168,7.3519,136.02,135.93,21.75]
[1718867472368,23.5053,136.03,135.94,20.0]
[1718867473369,23.5053,136.03,135.95,0.17]
[1718867473555,23.5053,136.03,135.95,0.34]
[1718867474348,23.5053,136.03,135.94,20.0]
[1718867474549,7.352,136.02,135.93,21.75]
[1718867475172,7.352,136.02,135.94,0.58609795]
[1718867475466,7.352,136.02,135.93,21.75]
[1718867476373,7.352,136.02,135.94,0.17]
[1718867476756,23.5051,136.03,135.94,0.34]
[1718867477451,7.3518,136.02,135.94,0.34]
[1718867477850,16.1538,136.03,135.94,0.34]
[1718867478193,16.3936,136.06,135.97,0.17]
[1718867478351,16.3936,136.06,135.97,20.51]
[1718867478553,16.3936,136.06,135.97,20.68]
[1718867478747,16.3936,136.06,135.99,0.17]
[1718867478947,16.3936,136.06,135.99,20.51]
[1718867479148,16.3936,136.06,136.0,0.17]
[1718867479382,16.3936,136.06,136.0,0.51]
[1718867479671,6.3771,136.07,136.0,0.51]
[1718867479874,15.0145,136.09,136.01,0.17]
[1718867480065,15.0145,136.09,135.98,6.135]
[1718867480384,7.3493,136.07,135.98,0.17]
[1718867480554,7.3493,136.07,135.98,20.51]
[1718867480876,7.3493,136.07,135.98,20.68]
[1718867481064,7.3487,136.08,135.99,0.90484023]
[1718867481458,7.3487,136.08,135.98,0.68]
[1718867483777,22.7026,136.09,135.98,20.68]
[1718867484080,7.3487,136.08,135.98,20.68]
[1718867484269,7.3492,136.07,135.98,20.68]
[1718867484685,7.3488,136.08,135.98,42.43]
[1718867485398,15.0145,136.09,135.98,42.43]
[1718867485769,22.3626,136.09,135.98,42.43]
[1718867486397,15.0145,136.09,135.98,42.26]
[1718867486694,0.17,136.08,135.98,20.34]
[1718867486907,7.35,136.06,135.98,0.34]
[1718867488403,7.35,136.06,135.98,20.34]
[1718867488995,7.3493,136.07,135.98,20.34]
[1718867489494,18.8816,136.08,135.98,20.34]
[1718867489674,0.17,136.07,135.98,0.17]
[1718867489875,7.3499,136.06,135.98,0.17]
[1718867491199,7.3499,136.06,135.97,15.3581]
[1718867491499,7.6893,136.07,135.97,15.1881]
[1718867493000,7.6893,136.07,135.98,4.33388542]
[1718867494103,15.1845,136.09,135.99,0.34]
[1718867494399,0.17,136.08,135.99,0.34]
[1718867494774,7.5186,136.08,135.99,0.34]
[1718867495732,7.3493,136.07,135.98,42.09]
[1718867495883,7.3493,136.07,135.99,0.17]
[1718867497295,7.3497,136.06,135.98,41.75]
[1718867497509,7.3503,136.05,135.97,15.1881]
[1718867497688,7.3498,136.06,135.97,15.1881]
[1718867498884,7.5193,136.07,135.97,15.1881]
[1718867499087,0.17,136.06,135.97,15.1881]
[1718867499299,7.5197,136.06,135.97,15.1881]
[1718867500310,0.17,136.06,135.97,15.1881]
[1718867500507,7.3499,136.06,135.97,15.1881]
[1718867501009,7.6893,136.07,135.97,15.1881]
[1718867502285,7.3498,136.06,135.97,15.1881]
[1718867503409,7.3498,136.06,135.97,15.0181]
[1718867504710,7.6894,136.07,135.98,0.17]
[1718867504881,7.3498,136.06,135.98,0.34]
[1718867505406,7.3502,136.05,135.97,15.0181]
[1718867505911,7.3518,136.02,135.94,22.9148]
[1718867506894,0.17,136.04,135.94,22.9148]
[1718867507096,0.17,136.03,135.94,22.9148]
[1718867507295,0.51,136.03,135.94,22.9148]
[1718867508185,7.3518,136.02,135.94,22.9148]
[1718867510197,20.0,136.05,135.95,0.17]
[1718867510411,50.24438626,136.09,135.95,0.68]
[1718867510617,7.3516,136.03,135.95,0.51]
[1718867511095,7.3509,136.04,135.95,0.51]
[1718867511791,7.3513,136.03,135.95,0.51]
[1718867512613,7.3518,136.02,135.94,44.6648]
[1718867512815,7.352,136.02,135.94,44.6648]
[1718867513200,7.352,136.02,135.94,22.9148]
[1718867515589,0.17,136.01,135.94,22.9148]
[1718867516016,7.3526,136.01,135.94,22.9148]
[1718867516393,0.17,136.05,135.94,22.9148]
[1718867516610,20.68,136.05,135.95,0.17]
[1718867517302,7.3519,136.02,135.95,0.17]
[1718867517613,7.3509,136.04,135.95,0.51]
[1718867517822,7.3509,136.04,135.96,0.34]
[1718867518498,7.3509,136.04,135.96,0.17]
[1718867518700,18.3779,136.04,135.94,22.9148]
[1718867518904,7.3525,136.01,135.94,22.9148]
[1718867519516,7.353,136.0,135.96,7.28]
[1718867520315,14.6326,136.01,135.96,7.28]
[1718867520690,7.3526,136.01,135.96,7.28]
[1718867521095,7.28,136.02,135.96,7.28]
[1718867521310,7.28,136.03,135.97,7.28]
[1718867522289,7.3518,136.02,135.97,7.28]
[1718867522492,7.28,136.03,135.98,22.6615]
[1718867522812,57.98873929,136.08,135.99,7.28]
[1718867522813,7.3503,136.05,135.99,7.28]
[1718867522992,7.3503,136.05,135.98,22.8315]
[1718867522993,14.6303,136.05,136.0,7.28]
[1718867523188,14.6308,136.04,135.98,29.9415]
[1718867524493,7.28,136.04,135.98,29.9415]
[1718867526895,7.3503,136.05,135.98,29.9415]
[1718867526896,7.3499,136.06,135.98,29.9415]
[1718867527114,7.28,136.05,135.99,7.28]
[1718867527297,7.28,136.04,135.99,7.28]
[1718867529205,7.3493,136.07,135.99,7.28]
[1718867529407,7.28,136.06,136.0,7.28]
[1718867530322,16.1165,136.12,136.02,7.28]
[1718867530619,7.3478,136.1,136.03,7.28]
[1718867530809,7.28,136.08,136.03,7.28]
[1718867531017,22.6615,136.18,136.05,0.17]
[1718867531210,7.3441,136.17,136.09,7.28]
[1718867531525,7.28,136.14,136.09,7.28]
[1718867532204,7.3441,136.17,136.1,7.28]
[1718867532397,7.28,136.15,136.1,7.28]
[1718867533114,7.28,136.15,136.11,21.7309]
[1718867533410,21.21316526,136.23,136.12,20.68]
[1718867533600,7.3409,136.23,136.12,20.68]
[1718867533802,7.3411,136.22,136.12,20.68]
[1718867534001,7.3408,136.23,136.12,20.68]
[1718867534221,15.3324,136.24,136.12,20.68]
[1718867534534,7.3411,136.22,136.12,20.68]
[1718867534817,21.79,136.22,136.12,0.34]
[1718867535022,7.3419,136.21,136.12,0.34]
[1718867535215,7.3419,136.21,136.14,0.17]
[1718867535515,7.3419,136.21,136.14,0.34]
[1718867535930,7.3425,136.2,136.12,0.17]
[1718867536101,7.3425,136.2,136.12,0.68]
[1718867536502,7.3417,136.21,136.12,0.68]
[1718867536805,7.3425,136.2,136.12,0.68]
[1718867537824,7.3436,136.18,136.12,0.17]
[1718867538199,7.3428,136.19,136.12,0.17]
[1718867544633,7.3428,136.19,136.12,1.33167653]
[1718867545130,0.17,136.21,136.11,21.7309]
[1718867545437,7.345,136.15,136.11,21.7309]
[1718867545810,7.3441,136.17,136.11,21.7309]
[1718867546233,18.3569,136.19,136.11,21.7309]
[1718867546234,7.3443,136.16,136.11,21.7309]
[1718867546530,7.344,136.17,136.11,21.7309]
[1718867546717,0.17,136.18,136.11,21.7309]
[1718867546918,7.3439,136.17,136.11,21.7309]
[1718867547725,7.3428,136.19,136.11,21.7309]
[1718867548443,7.3433,136.18,136.11,21.7309]
[1718867548621,7.3438,136.17,136.11,21.7309]
[1718867549311,7.3434,136.18,136.11,21.7309]
[1718867551033,7.3429,136.19,136.11,21.7309]
[1718867551535,7.3432,136.18,136.11,21.7309]
[1718867552340,7.3437,136.17,136.11,21.7309]
[1718867552557,7.3459,136.13,136.11,21.7309]
[1718867552845,7.3456,136.14,136.11,21.7309]
[1718867553045,18.3618,136.16,136.05,21.1389]
[1718867553222,7.3461,136.13,136.05,21.1389]
[1718867553615,7.3443,136.16,136.05,21.1389]
[1718867553842,7.3454,136.14,136.05,21.1389]
[1718867554226,7.3459,136.13,136.05,21.1389]
[1718867554823,7.3455,136.14,136.05,21.1389]
[1718867555439,7.3455,136.14,136.06,0.34]
[1718867555642,7.3455,136.14,136.07,0.17]
[1718867556950,7.3459,136.13,136.05,21.1389]
[1718867557125,7.3465,136.12,136.05,21.1389]
[1718867557927,7.3461,136.13,136.05,21.1389]
[1718867558155,7.3455,136.14,136.06,0.17]
[1718867558354,7.346,136.13,136.06,0.17]
[1718867559350,7.3465,136.12,136.06,0.17]
[1718867559558,7.3461,136.13,136.06,0.17]
[1718867560045,18.5332,136.15,136.05,21.1389]
[1718867560235,7.3466,136.12,136.05,21.1389]
[1718867561753,7.3461,136.13,136.05,21.1389]
[1718867562539,7.3464,136.12,136.05,21.1389]
[1718867562946,7.3461,136.13,136.05,21.1389]
[1718867565433,7.27,136.11,136.06,7.27]
[1718867566534,7.27,136.11,136.05,21.1389]
[1718867566535,7.27,136.09,136.05,21.1389]
[1718867566745,0.17,136.13,136.05,21.1389]
[1718867567046,7.27,136.09,136.05,21.1389]
[1718867569458,7.3475,136.1,136.05,21.1389]
[1718867570233,7.3477,136.1,136.05,21.1389]
[1718867574366,7.3471,136.11,136.05,21.1389]
[1718867574560,7.6867,136.12,136.05,21.1389]
[1718867574863,7.3471,136.11,136.05,21.1389]
[1718867577471,7.3476,136.1,136.05,21.1389]
[1718867578563,7.3472,136.11,136.05,21.1389]
[1718867578768,18.3618,136.16,136.06,1.47023641]
[1718867578945,7.3458,136.14,136.06,1.47023641]
[1718867579266,5.73269545,136.17,136.05,21.3089]
[1718867579447,100.0,136.16,136.06,0.17]
[1718867579659,7.3466,136.12,136.05,21.3089]
[1718867580172,7.3471,136.11,136.05,21.1389]
[1718867580474,21.82,136.12,136.05,21.1389]
[1718867580777,7.3478,136.1,136.05,21.1389]
[1718867582248,7.687,136.11,136.05,21.1389]
[1718867582449,7.3479,136.1,136.05,21.1389]
[1718867582674,7.348,136.09,136.05,21.1389]
[1718867582970,7.3477,136.1,136.05,21.1389]
[1718867583546,7.3472,136.11,136.05,21.1389]
[1718867583741,7.3465,136.12,136.05,21.1389]
[1718867583948,21.20610675,136.17,136.06,0.34]
[1718867584157,7.3445,136.16,136.09,21.8546]
[1718867584363,7.345,136.15,136.09,21.8546]
[1718867584562,7.3445,136.16,136.09,21.8546]
[1718867584874,7.3449,136.15,136.09,21.8546]
[1718867585946,7.3454,136.14,136.09,21.8546]
[1718867586146,7.3461,136.13,136.09,21.8546]
[1718867586573,7.3465,136.12,136.09,21.8546]
[1718867587187,7.3466,136.12,136.06,21.7862]
[1718867588648,40.1833,136.15,136.06,21.7862]
[1718867588849,0.34,136.14,136.06,21.7862]
[1718867589750,7.347,136.11,136.06,21.7862]
[1718867591258,7.3467,136.12,136.06,21.7862]
[1718867593681,0.17,136.11,136.06,21.7862]
[1718867593855,7.3476,136.1,136.06,21.7862]
[1718867594252,7.349,136.08,136.02,22.0203]
[1718867594459,21.82,136.09,136.02,22.0203]
[1718867594758,0.34,136.08,136.02,22.0203]
[1718867594973,7.3499,136.06,136.02,22.0203]
[1718867595354,0.17,136.08,136.02,22.0203]
[1718867595561,7.3493,136.07,136.02,22.0203]
[1718867596666,21.82,136.09,136.02,22.0203]
[1718867596865,7.349,136.08,136.02,22.0203]
[1718867597176,21.82,136.09,136.02,22.0203]
[1718867597177,7.3491,136.07,136.02,22.0203]
[1718867598478,40.5299,136.1,136.02,22.0203]
[1718867598687,7.3492,136.07,136.02,22.0203]
[1718867601057,7.3498,136.06,136.02,22.0203]
[1718867601466,7.28,136.05,136.02,22.0203]
[1718867602663,7.3502,136.05,136.02,22.0203]
[1718867602863,14.6308,136.04,136.02,22.0203]
[1718867603081,7.3513,136.03,136.02,22.0203]
[1718867603265,14.6313,136.03,136.02,22.0203]
[1718867604084,7.3525,136.01,135.99,22.5416]
[1718867604287,7.28,136.0,135.95,22.5416]
[1718867604466,0.17,136.0,135.95,22.5416]
[1718867604661,7.28,135.96,135.92,22.1268]
[1718867604860,7.28,135.93,135.92,22.1268]
[1718867605078,7.3554,135.96,135.92,22.1268]
[1718867605275,7.28,135.94,135.92,22.1268]
[1718867606180,7.28,135.95,135.92,22.1268]
[1718867607260,7.3547,135.97,135.92,22.1268]
[1718867609080,0.17,136.0,135.93,0.17]
[1718867609388,40.2495,136.03,135.93,0.17]
[1718867609685,7.3538,135.99,135.92,22.1268]
[1718867610465,7.3542,135.98,135.92,22.1268]
[1718867612469,7.3537,135.99,135.92,22.1268]
[1718867612667,40.2484,136.03,135.93,0.51]
[1718867612862,7.3525,136.01,135.93,0.51]
[1718867613065,7.3521,136.02,135.93,0.51]